lending/lending_fUSD_20251015
["ID","MTS","AMOUNT","RATE_DAILY","PERIOD"]
[391343499,1760550646265,-470.0,0.00019245,2]
[391343500,1760550646275,-470.0,0.000193,2]
[391343501,1760550646284,-10044.69474436,0.000193,2]
[391343502,1760550646293,-10044.69474436,0.000193,2]
[391343503,1760550646305,-1733.98,0.00019311,2]
[391343504,1760550646314,-300.0,0.00019339,2]
[391343505,1760550646323,-265.81,0.00019342,2]
[391343506,1760550646333,-470.0,0.00019355,2]
[391343507,1760550646342,-8725.75788484,0.00019387,2]
[391343508,1760550646351,-5000.0,0.00019387,2]
[391343509,1760550646361,-5000.0,0.00019387,2]
[391343510,1760550646370,-5000.0,0.00019387,2]
[391343511,1760550646379,-5000.0,0.00019387,2]
[391343512,1760550646388,-1025.30615044,0.000194,14]
[391343513,1760550646398,-1090.0,0.00019401,2]
[391343514,1760550646408,-470.0,0.0001941,2]
[391343515,1760550646417,-228.23488897,0.0001941,4]
[391343516,1760550646427,-1000.0,0.00019438,2]
[391343517,1760550646436,-1179.42,0.00019452,2]
[391343518,1760550646446,-500.0,0.00019452,2]
[391343519,1760550646456,-470.0,0.00019464,2]
[391343520,1760550646465,-500.0,0.00019466,2]
[391343521,1760550646475,-500.0,0.00019466,2]
[391343522,1760550646484,-166.66,0.00019484,2]
[391343523,1760550646494,-3674.79,0.00019488,2]
[391343524,1760550646503,-10044.69474436,0.000195,2]
[391343525,1760550646513,-10044.69474436,0.000195,2]
[391343526,1760550646522,-470.0,0.00019519,2]
[391343527,1760550646532,-1000.0,0.00019521,2]
[391343528,1760550646541,-1000.0,0.00019521,2]
[391343529,1760550646553,-640.81948005,0.00019521,2]
[391343530,1760550646562,-1000.0,0.00019521,2]
[391343531,1760550646572,-501.05738424,0.00019521,2]
[391343532,1760550646581,-1000.0,0.00019521,2]
[391343534,1760550646591,-1000.0,0.00019521,2]
[391343535,1760550646600,-1000.0,0.00019521,2]
[391343536,1760550646610,-1000.0,0.00019521,2]
[391343537,1760550646619,-1000.0,0.00019521,2]
[391343538,1760550646629,-1000.0,0.00019521,2]
[391343539,1760550646638,-1000.0,0.00019521,2]
[391343540,1760550646647,-1000.0,0.00019521,2]
[391343541,1760550646656,-951.24017531,0.00019521,2]
[391343542,1760550646666,-1000.0,0.00019521,2]
[391343543,1760550646676,-1030.35814271,0.00019521,2]
[391343544,1760550646686,-1000.0,0.00019521,2]
[391343545,1760550646695,-1000.0,0.00019521,2]
[391343546,1760550646704,-1000.0,0.00019521,2]
[391343547,1760550646713,-1000.0,0.00019521,2]
[391343548,1760550646723,-1000.0,0.00019521,2]
[391343549,1760550646732,-919.09725024,0.00019521,2]
[391343550,1760550646741,-514.4251423,0.00019521,2]
[391343551,1760550646753,-1000.0,0.00019521,2]
[391343552,1760550646762,-1000.0,0.00019521,2]
[391343553,1760550646772,-1000.0,0.00019521,2]
[391343554,1760550646782,-1000.0,0.00019521,2]
[391343555,1760550646794,-624.85587665,0.00019521,2]
[391343556,1760550646805,-1001.65863554,0.00019521,2]
[391343557,1760550646815,-1000.0,0.00019521,2]
[391343558,1760550646824,-1000.0,0.00019521,2]
[391343559,1760550646835,-243.93694154,0.00019521,2]
[391343560,1760550646845,-1000.0,0.00019521,2]
[391343561,1760550646855,-1000.0,0.00019521,2]
[391343562,1760550646866,-1000.0,0.00019521,2]
[391343563,1760550646878,-1000.0,0.00019521,2]
[391343564,1760550646889,-500.0,0.00019521,2]
[391343565,1760550646899,-1000.0,0.00019521,2]
[391343566,1760550646909,-165.64,0.00019523,2]
[391343567,1760550646919,-209.97537068,0.00019557,2]
[391343568,1760550646929,-1500.0,0.00019568,2]
[391343569,1760550646938,-1433.95445627,0.00019568,2]
[391343570,1760550646949,-1000.0,0.00019568,2]
[391343571,1760550646958,-1500.0,0.00019568,2]
[391343572,1760550646968,-1500.0,0.00019568,2]
[391343573,1760550646978,-1500.0,0.00019568,2]
[391343574,1760550646988,-470.0,0.00019574,2]
[391343575,1760550646998,-1733.98,0.00019585,2]
[391343576,1760550647008,-161.7355971,0.00019592,2]
[391343577,1760550647018,-475.49624517,0.000196,3]
[391343578,1760550647028,-470.0,0.00019629,2]
[391343579,1760550647038,-182.8,0.00019658,2]
[391343580,1760550647049,-470.0,0.00019683,2]
[391343581,1760550647058,-10044.69474436,0.000197,2]
[391343582,1760550647068,-10044.69474436,0.000197,2]
[391343583,1760550647077,-2000.0,0.000197,2]
[391343584,1760550647087,-1252.0,0.00019712,2]
[391343585,1760550647096,-300.0,0.00019725,2]
[391343586,1760550647106,-300.0,0.00019725,2]
[391343587,1760550647115,-300.0,0.00019725,2]
[391343588,1760550647125,-300.0,0.00019725,2]
[391343589,1760550647134,-300.0,0.00019725,2]
[391343590,1760550647144,-300.0,0.00019725,2]
[391343591,1760550647153,-1179.42,0.00019726,2]
[391343592,1760550647162,-500.0,0.00019726,2]
[391343593,1760550647171,-151.0,0.00019726,7]
[391343594,1760550647181,-151.0,0.00019726,7]
[391343595,1760550647190,-898.052151,0.00019726,7]
[391343596,1760550647201,-898.052151,0.00019726,7]
[391343597,1760550647211,-171518.34,0.00019726,2]
[391343598,1760550647220,-156.587,0.00019726,2]
[391343599,1760550647230,-476.74044726,0.00019738,2]
[391343600,1760550647239,-500.0,0.0001974,2]
[391343601,1760550647250,-500.0,0.0001974,2]
[391343602,1760550647259,-500.0,0.00019773,2]
[391343603,1760550647269,-475.49624517,0.000198,7]
[391343604,1760550647278,-1733.98,0.00019859,2]
[391343605,1760550647287,-298.26089446,0.00019895,2]
[391343606,1760550647298,-151.0,0.00019897,7]
[391343607,1760550647308,-10044.69474436,0.000199,2]
[391343608,1760550647317,-10044.69474436,0.000199,2]
[391343609,1760550647326,-407.598964,0.000199,7]
[391343610,1760550647335,-67.00130615,0.000199,7]
[391343611,1760550647927,-415.550815,0.000183,2]
[391343612,1760550647936,-839.61387934,0.000185,2]
[391343613,1760550647948,-596.16806966,0.000185,2]
[391343614,1760550647958,-1435.781949,0.000185,2]
[391343615,1760550647968,-1435.781949,0.000185,2]
[391343616,1760550647978,-1435.781949,0.000185,2]
[391343617,1760550647988,-180.54,0.000188,2]
[391343618,1760550647998,-180.54,0.000188,2]
[391343619,1760550648008,-180.54,0.000188,2]
[391343620,1760550648018,-180.54,0.000188,2]
[391343621,1760550648028,-180.54,0.000188,2]
[391343622,1760550648037,-180.54,0.000188,2]
[391343623,1760550648048,-180.54,0.000188,2]
[391343624,1760550648058,-180.54,0.000188,2]
[391343625,1760550648068,-180.54,0.00018963,2]
[391343626,1760550648080,-180.54,0.0001899,2]
[391343627,1760550648090,-180.54,0.0001899,2]
[391343628,1760550648100,-180.54,0.0001899,2]
[391343629,1760550648110,-180.54,0.0001899,2]
[391343630,1760550648119,-180.54,0.0001899,2]
[391343631,1760550648130,-180.54,0.0001899,2]
[391343632,1760550648139,-180.54,0.0001899,2]
[391343633,1760550648149,-180.54,0.0001899,2]
[391343634,1760550648158,-180.54,0.0001899,2]
[391343635,1760550648168,-180.54,0.0001899,2]
[391343636,1760550648177,-180.54,0.0001899,2]
[391343637,1760550648188,-180.54,0.0001899,2]
[391343638,1760550648205,-180.54,0.0001899,2]
[391343639,1760550648215,-1435.781949,0.00019,2]
[391343640,1760550648225,-500.0,0.00019,2]
[391343641,1760550648234,-1435.781949,0.00019,2]
[391343642,1760550648247,-547.0,0.00019245,2]
[391343643,1760550648256,-547.0,0.000193,2]
[391343644,1760550648266,-547.0,0.00019355,2]
[391343645,1760550648276,-547.0,0.0001941,2]
[391343646,1760550648286,-547.0,0.00019464,2]
[391343647,1760550648296,-547.0,0.00019519,2]
[391343648,1760550648308,-547.0,0.00019574,2]
[391343649,1760550648318,-547.0,0.00019629,2]
[391343650,1760550648327,-547.0,0.00019683,2]
[391343651,1760550648337,-568.56341322,0.00019738,2]
[391343652,1760550648347,-340.59765785,0.000199,7]
[391343653,1760550648356,-407.598964,0.000199,7]
[391343654,1760550648366,-407.598964,0.000199,7]
[391343655,1760550648375,-3293.8285776,0.00019917,2]
[391343656,1760550648384,-151.0,0.00019917,7]
[391343657,1760550648394,-162.241251,0.00019917,7]
[391343658,1760550648403,-151.0,0.00019917,7]
[391343659,1760550648413,-151.0,0.00019917,7]
[391343660,1760550648422,-151.0,0.00019917,7]
[391343661,1760550648431,-151.0,0.00019917,7]
[391343662,1760550648441,-151.0,0.00019917,7]
[391343663,1760550648450,-151.0,0.00019917,7]
[391343664,1760550648459,-151.0,0.00019917,7]
[391343665,1760550648469,-300.0,0.00019949,2]
[391343666,1760550648480,-300.0,0.00019949,2]
[391343667,1760550648489,-300.0,0.00019949,2]
[391343668,1760550648499,-300.0,0.00019949,2]
[391343669,1760550648508,-300.0,0.00019949,2]
[391343670,1760550648517,-300.0,0.00019949,2]
[391343671,1760550648526,-300.0,0.00019949,2]
[391343672,1760550648536,-105372.56852151,0.0001995,15]
[391343673,1760550648545,-151.0,0.0001995,7]
[391343674,1760550648556,-250.21043,0.0001995,7]
[391343675,1760550648566,-151.0,0.0001995,7]
[391343676,1760550648576,-151.0,0.0001995,7]
[391343677,1760550648585,-151.0,0.0001995,7]
[391343678,1760550648595,-151.0,0.0001995,7]
[391343679,1760550648604,-151.0,0.0001995,7]
[391343680,1760550648614,-151.0,0.0001995,7]
[391343681,1760550648623,-151.0,0.0001995,7]
[391343682,1760550648633,-151.0,0.0001995,7]
[391343683,1760550648642,-151.0,0.0001995,7]
[391343684,1760550648651,-151.0,0.0001995,7]
[391343685,1760550648661,-151.0,0.0001995,7]
[391343686,1760550648670,-151.0,0.0001995,7]
[391343687,1760550648680,-151.0,0.0001995,7]
[391343688,1760550648689,-215.24409511,0.0001995,7]
[391343689,1760550648699,-151.0,0.0001995,7]
[391343690,1760550648709,-2053.686862,0.0001995,7]
[391343691,1760550648719,-151.0,0.0001995,7]
[391343692,1760550648728,-151.0,0.0001995,7]
[391343693,1760550648738,-2053.686862,0.0001995,7]
[391343694,1760550648748,-2053.686862,0.0001995,7]
[391343695,1760550648758,-2053.686862,0.0001995,7]
[391343696,1760550648767,-151.0,0.0001995,7]
[391343697,1760550648776,-151.0,0.0001995,7]
[391343698,1760550648786,-151.0,0.0001995,7]
[391343699,1760550648801,-151.0,0.0001995,7]
[391343700,1760550648810,-151.0,0.0001995,7]
[391343701,1760550648820,-151.0,0.0001995,7]
[391343702,1760550648829,-151.0,0.0001995,7]
[391343703,1760550648840,-289.799374,0.0001995,7]
[391343704,1760550648851,-151.0,0.0001995,7]
[391343705,1760550648861,-151.0,0.0001995,7]
[391343706,1760550648872,-151.0,0.0001995,7]
[391343707,1760550648882,-215.1524,0.0001995,7]
[391343708,1760550648891,-151.0,0.0001995,7]
[391343709,1760550648901,-151.0,0.0001995,7]
[391343710,1760550648910,-215.1524,0.0001995,7]
[391343711,1760550648921,-215.1524,0.0001995,7]
[391343712,1760550648931,-151.0,0.0001995,7]
[391343713,1760550648941,-215.1524,0.0001995,7]
[391343714,1760550648950,-1435.781949,0.0001995,7]
[391343715,1760550648960,-1435.781949,0.0001995,7]
[391343716,1760550648969,-161.35538822,0.00019973,2]
[391343717,1760550648980,-150.0,0.00019973,2]
[391343718,1760550648990,-150.0,0.00019973,2]
[391343719,1760550648999,-300.0,0.00019999,2]
[391343720,1760550649009,-300.0,0.00019999,2]
[391343721,1760550649019,-300.0,0.00019999,2]
[391343722,1760550649028,-300.0,0.00019999,2]
[391343723,1760550649038,-300.0,0.00019999,2]
[391343724,1760550649050,-300.0,0.00019999,2]
[391343725,1760550649059,-77666.57588222,0.0002,5]
[391343726,1760550649208,-1435.781949,0.000185,2]
[391343727,1760550649218,-972.78212996,0.000185,2]
[391343728,1760550649230,-462.99981904,0.000185,2]
[391343729,1760550649241,-211.76980698,0.000185,2]
[391343730,1760550649260,-1224.01214202,0.000185,2]
[391343731,1760550649270,-1435.781949,0.000185,2]
[391343732,1760550649279,-1435.781949,0.00019,2]
[391343733,1760550649288,-1435.781949,0.00019,2]
[391343734,1760550649298,-415.55081499,0.000193,2]
[391343735,1760550649311,-1435.781949,0.0001995,7]
[391343736,1760550649320,-1435.781949,0.0001995,7]
[391343737,1760550649330,-91844.85597999,0.0002,5]
[391343738,1760550649342,-12778.77609509,0.0002,5]
[391343739,1760550649353,-12120.0,0.0002,5]
[391343740,1760550649365,-11100.0,0.0002,5]
[391343741,1760550649377,-799.1027706,0.0002,5]
[391343742,1760550649483,150.5,0.0002609,120]
[391343743,1760550649543,258.29,0.0002608,120]
[391343744,1760550800492,500.0,0.00025781,120]
[391343745,1760550805043,500.0,0.00025781,120]
[391343746,1760550809794,500.0,0.00026089,120]
[391343747,1760550810195,500.0,0.00027244,120]
[391343749,1760550903412,221.0,0.00020473,120]
[391343750,1760550904726,221.0,0.00021497,120]
[391343751,1760551050349,39999.999999,0.00012,2]
[391343752,1760551394936,503.699603,0.00026043,120]
[391343753,1760551402126,500.0,0.00026043,120]
[391343754,1760551536644,195.0,7.703e-05,2]
[391343755,1760551536928,194.0,7.703e-05,2]
[391343766,1760551831390,-666.48,0.00013699,2]
[391343767,1760551831400,-2500.0,0.00014384,2]
[391343768,1760551831409,-300.0,0.00014384,2]
[391343769,1760551831419,-300.0,0.00015067,2]
[391343770,1760551831428,-1200.0,0.00015067,2]
[391343771,1760551831437,-2500.0,0.00015068,2]
[391343772,1760551831447,-300.0,0.00015068,2]
[391343773,1760551831456,-195.0,0.00015068,2]
[391343774,1760551831466,-494.45219725,0.0001516,2]
[391343775,1760551831475,-215.2591853,0.0001516,2]
[391343776,1760551831485,-166.66,0.00015278,2]
[391343777,1760551831494,-1182.0,0.00015443,2]
[391343778,1760551831504,-565.89164693,0.00015443,2]
[391343779,1760551831523,-664.21,0.00015443,2]
[391343780,1760551831535,-2783.89835307,0.00015443,2]
[391343781,1760551831545,-622.0,0.00015443,2]
[391343782,1760551831555,-166.66,0.000156,2]
[391343783,1760551831566,-160.0,0.00015677,2]
[391343784,1760551831585,-475.49624517,0.00015678,2]
[391343785,1760551831595,-1336.03475588,0.00015766,2]
[391343786,1760551831606,-22.24837778,0.00015766,2]
[391343788,1760551831616,-166.66,0.00015922,2]
[391343789,1760551831625,-2751.0,0.00016001,2]
[391343790,1760551831635,-150.0,0.00016022,2]
[391343791,1760551831645,-250.0,0.00016083,7]
[391343792,1760551831655,-1155.34,0.00016083,2]
[391343793,1760551831664,-1000.0,0.00016172,2]
[391343794,1760551831673,-1000.0,0.00016172,2]
[391343795,1760551831683,-550.0,0.00016172,2]
[391343796,1760551831692,-3405.0,0.00016173,2]
[391343797,1760551831701,-787.411,0.00016173,2]
[391343798,1760551831711,-1266.0,0.00016173,2]
[391343799,1760551831720,-2049.0,0.00016173,2]
[391343800,1760551831730,-571.0,0.00016173,2]
[391343801,1760551831739,-1309.548,0.00016173,2]
[391343802,1760551831749,-1587.0,0.00016173,2]
[391343803,1760551831758,-604.0,0.00016173,2]
[391343804,1760551831768,-816.0,0.00016173,2]
[391343805,1760551831777,-2545.0,0.00016173,2]
[391343807,1760551831787,-902.0,0.00016173,2]
[391343809,1760551831796,-1625.61,0.00016173,2]
[391343811,1760551831807,-161.7355971,0.0001621,2]
[391343813,1760551831816,-166.66,0.00016243,2]
[391343815,1760551831826,-3076.0,0.00016303,2]
[391343816,1760551831835,-3771.91,0.00016438,30]
[391343818,1760551831844,-1625.61,0.00016447,2]
[391343821,1760551831854,-166.66,0.0001648,2]
[391343822,1760551831863,-420.0,0.00016489,2]
[391343825,1760551831873,-166.66,0.00016565,2]
[391343827,1760551831883,-1680.0,0.00016573,2]
[391343828,1760551831892,-1625.61,0.00016721,2]
[391343830,1760551831902,-166.66,0.00016887,2]
[391343832,1760551831912,-1000.0,0.00016951,2]
[391343834,1760551831922,-150.0,0.00016952,2]
[391343836,1760551831932,-590.12611264,0.00016952,2]
[391343838,1760551831942,-150.0,0.00016952,2]
[391343840,1760551831951,-4068.66371695,0.00016952,2]
[391343842,1760551831964,-740.88817157,0.00016952,2]
[391343844,1760551831974,-150.0,0.00016952,2]
[391343846,1760551831984,-27065.21269115,0.00016952,2]
[391343848,1760551831995,-4181.42850488,0.00016952,2]
[391343851,1760551832007,-1599.22750367,0.00016952,2]
[391343853,1760551832018,-938.58626969,0.00016952,2]
[391343855,1760551832029,-8948.02727098,0.00016952,2]
[391343857,1760551832039,-150.0,0.00016952,2]
[391343859,1760551832049,-1190.03618036,0.00016952,2]
[391343861,1760551832059,-150.0,0.00016952,2]
[391343863,1760551832068,-178.68626638,0.00016952,2]
[391343865,1760551832080,-1524.09389807,0.00016952,2]
[391343868,1760551832097,-736.16862197,0.00016952,2]
[391343870,1760551832108,-428.0,0.00016952,2]
[391343874,1760551832140,-353.04341621,0.00016952,2]
[391343876,1760551832152,-1053.03409589,0.00016952,2]
[391343879,1760551832167,-649.34487922,0.00016952,2]
[391343881,1760551832176,-1625.61,0.00016995,2]
[391343883,1760551832187,-1686.92468763,0.00017,2]
[391343885,1760551832197,-1686.92468763,0.00017,2]
[391343887,1760551832207,-166.66,0.00017024,2]
[391343889,1760551832217,-1686.92468763,0.000172,2]
[391343891,1760551832227,-1686.92468763,0.000172,2]
[391343893,1760551832238,-1625.61,0.00017268,2]
[391343895,1760551832248,-935.0,0.00017287,2]
[391343896,1760551832257,-1686.92468763,0.000173,2]
[391343899,1760551832267,-1686.92468763,0.000173,2]
[391343901,1760551832276,-666.0,0.00017408,3]
[391343903,1760551832288,-500.0,0.00017425,2]
[391343905,1760551832297,-1686.92468763,0.000175,2]
[391343907,1760551832307,-1686.92468763,0.000175,2]
[391343909,1760551832316,-151.0,0.000175,2]
[391343911,1760551832326,-1625.61,0.00017542,2]
[391343913,1760551832335,-166.66,0.00017569,2]
[391343914,1760551832345,-2036.49118854,0.00017668,2]
[391343917,1760551832355,-1686.92468763,0.000177,2]
[391343918,1760551832364,-1128.93174344,0.00017728,2]
[391343921,1760551832376,-4997.87782129,0.00017728,2]
[391343923,1760551832388,-807.86984896,0.00017728,2]
[391343925,1760551832400,-385.9555348,0.00017728,2]
[391343927,1760551832412,-1118.96304471,0.00017728,2]
[391343930,1760551832424,-177.5120068,0.00017728,2]
[391343932,1760551832434,-1000.0,0.00017767,2]
[391343934,1760551832444,-214.38159764,0.00017768,2]
[391343936,1760551832454,-953.2957154,0.00017768,2]
[391343938,1760551832466,-814.82102388,0.00017768,2]
[391343940,1760551832477,-417.654328,0.00017768,2]
[391343942,1760551832488,-466.76144635,0.00017768,2]
[391344025,1760551837345,-3618.8152,0.00015443,2]
[391344026,1760551837400,-2824.1848,0.00015443,2]
[391344027,1760551837410,-4026.56483069,0.00017768,2]
[391344028,1760551837420,-277.35679052,0.00017768,2]
[391344029,1760551837429,-2000.0,0.00017768,2]
[391344030,1760551837439,-2000.0,0.00017768,2]
[391344031,1760551837449,-818.39876458,0.00017768,2]
[391344032,1760551837459,-498.57786207,0.00017768,2]
[391344033,1760551837846,-322.6107,0.00017768,2]
[391344034,1760551837870,-157.56507449,0.00017768,2]
[391344035,1760551837880,-1750.11079445,0.00017768,2]
[391344036,1760551837890,-1625.61,0.00017816,2]
[391344037,1760551837900,-1686.92468763,0.000179,2]
[391344038,1760551837909,-10044.69474436,0.00018,2]
[391344039,1760551837918,-10044.69474436,0.00018,2]
[391344040,1760551837929,-179.50913685,0.00018,2]
[391344041,1760551837938,-191.3416869,0.00018,2]
[391344042,1760551837948,-587.0,0.00018046,2]
[391344043,1760551837958,-1000.0,0.00018082,2]
[391344044,1760551837968,-1625.61,0.0001809,2]
[391344045,1760551837978,-166.66,0.00018113,2]
[391344046,1760551837988,-10044.69474436,0.000182,2]
[391344047,1760551837997,-10044.69474436,0.000182,2]
[391344048,1760551838006,-1715.601587,0.000182,2]
[391344049,1760551838016,-179.50913685,0.000182,2]
[391344050,1760551838025,-191.3416869,0.000182,2]
[391344051,1760551838035,-1955.04130659,0.00018206,2]
[391344052,1760551838044,-2351.0,0.00018229,2]
[391344053,1760551838054,-168.0,0.00018248,2]
[391344054,1760551838063,-500.0,0.00018273,2]
[391344055,1760551838072,-500.0,0.00018273,2]
[391344056,1760551838081,-500.0,0.00018273,2]
[391344057,1760551838092,-500.0,0.00018273,2]
[391344058,1760551838101,-500.0,0.00018273,2]
[391344059,1760551838111,-500.0,0.00018273,2]
[391344060,1760551838121,-1000.0,0.00018289,2]
[391344061,1760551838131,-1000.0,0.00018289,2]
[391344062,1760551838145,-1000.0,0.00018289,2]
[391344063,1760551838154,-105792.207777,0.0001829,2]
[391344064,1760551838178,-1271.37012887,0.0001829,2]
[391344065,1760551839366,-51232.66989413,0.0001829,2]
[391344066,1760551839377,-168.0,0.00018306,2]
[391344067,1760551839387,-2036.49118847,0.0001836,2]
[391344068,1760551839397,-1625.61,0.00018364,2]
[391344069,1760551839407,-619.125,0.0001839,2]
[391344070,1760551839417,-2444.5411,0.0001839,2]
[391344071,1760551839427,-10044.69474436,0.000184,2]
[391344072,1760551839437,-10044.69474436,0.000184,2]
[391344073,1760551839449,-191.3416869,0.000184,2]
[391344074,1760551839459,-366.27579026,0.00018404,2]
[391344075,1760551839469,-62095.15988612,0.00018417,2]
[391344076,1760551839479,-177731.81573218,0.00018419,2]
[391344077,1760551839488,-332.44065201,0.00018432,2]
[391344078,1760551839498,-9396.56845829,0.00018435,2]
[391344079,1760551839507,-168.0,0.00018435,2]
[391344080,1760551839518,-4014.0,0.00018443,2]
[391344081,1760551839529,-598.592,0.00018443,2]
[391344082,1760551839538,-62095.15988612,0.00018443,2]
[391344083,1760551839548,-366.27579026,0.00018447,2]
[391344084,1760551839557,-9396.56845829,0.00018448,2]
[391344085,1760551839567,-49565.45245933,0.00018457,2]
[391344086,1760551839579,-1993.26633295,0.00018457,2]
[391344087,1760551839593,-949.85707937,0.00018457,2]
[391344088,1760551839604,-500.0,0.00018457,2]
[391344089,1760551839621,-24023.99999999,0.00018457,2]
[391344090,1760551839634,-2878.39558955,0.00018457,2]
[391344091,1760551839652,-5608.97435552,0.00018457,2]
[391344092,1760551839665,-1115.25,0.00018457,2]
[391344100,1760551842371,-5558.0,0.00018457,2]
[391344101,1760551842427,-258.148,0.00018457,2]
[391344104,1760551847663,-1604.47073996,0.00018457,2]
[391344105,1760551847674,-7140.17018878,0.00018457,2]
[391344106,1760551847714,-10720.11513296,0.00018457,2]
[391344107,1760551847728,-14580.4194224,0.00018457,2]
[391344108,1760551998954,502.895809,0.00026043,120]
[391344109,1760552002000,500.0,0.00026043,120]
[391344110,1760552600610,500.0,0.00025333,120]
[391344111,1760552600991,500.0,0.00027243,120]
[391344112,1760552685546,156.21,8.668e-05,2]
[391344113,1760552747718,-20000.0,0.00015,2]
[391344114,1760552748655,-20000.0,0.00015,2]
[391344115,1760552749595,-20000.0,0.00015,2]
[391344116,1760552750168,-20000.0,0.00015,2]
[391344117,1760552751074,-20000.0,0.00015,2]
[391344118,1760552752220,-20000.0,0.00015,2]
[391344120,1760552908801,-195.00907424,0.000135,2]
[391344131,1760553031538,-52.55539024,0.000135,2]
[391344132,1760553031550,-1704.47,0.00014421,2]
[391344133,1760553031560,-6700.0,0.000146,5]
[391344134,1760553031570,-1200.0,0.00014699,2]
[391344135,1760553031580,-300.0,0.00014699,2]
[391344136,1760553031590,-1200.0,0.00014699,2]
[391344137,1760553031599,-300.0,0.00014699,2]
[391344138,1760553031610,-300.0,0.00014699,2]
[391344139,1760553031620,-3556.22760576,0.000147,5]
[391344140,1760553031632,-709.49372007,0.000147,5]
[391344141,1760553031644,-1403.84725605,0.000147,5]
[391344142,1760553031660,-430.93434079,0.000147,5]
[391344143,1760553031671,-566.66878313,0.000147,5]
[391344144,1760553031683,-2408.8,0.000147,5]
[391344145,1760553031761,-4424.0282942,0.000147,5]
[391344146,1760553031771,-155.30309193,0.00014735,7]
[391344147,1760553031782,-1000.0,0.00014799,2]
[391344148,1760553031791,-20300.0,0.000148,5]
[391344149,1760553031802,-195.0,0.0001485,2]
[391344150,1760553031811,-150.0,0.00014899,2]
[391344151,1760553031822,-3696.41883557,0.000149,2]
[391344152,1760553031831,-27000.0,0.000149,5]
[391344153,1760553031840,-1000.0,0.000149,2]
[391344154,1760553031850,-1001.0,0.000149,2]
[391344155,1760553031859,-500.0,0.000149,2]
[391344156,1760553031869,-1000.0,0.0001495,2]
[391344159,1760553031880,-1000.0,0.0001495,2]
[391344160,1760553031890,-1000.0,0.0001495,2]
[391344161,1760553031899,-1000.0,0.0001495,2]
[391344162,1760553031909,-1010.0,0.0001495,2]
[391344163,1760553031918,-1000.0,0.0001495,2]
[391344164,1760553031928,-1000.0,0.0001495,2]
[391344165,1760553031937,-1000.0,0.0001495,3]
[391344166,1760553031946,-1000.0,0.0001495,3]
[391344167,1760553031956,-1000.0,0.0001495,3]
[391344168,1760553031965,-1000.0,0.0001495,2]
[391344169,1760553031976,-1000.0,0.0001495,3]
[391344170,1760553031986,-1002.0,0.0001495,2]
[391344171,1760553031996,-500.0,0.00014973,2]
[391344173,1760553032006,-500.0,0.00014973,2]
[391344175,1760553032016,-500.0,0.00014973,2]
[391344176,1760553032027,-500.0,0.00014973,2]
[391344177,1760553032037,-529.59492403,0.00014973,2]
[391344178,1760553032047,-500.0,0.00014973,2]
[391344179,1760553032059,-500.0,0.00014973,2]
[391344180,1760553032068,-500.0,0.00014973,2]
[391344181,1760553032078,-500.0,0.00014973,2]
[391344182,1760553032087,-463.91158281,0.00014999,2]
[391344183,1760553032097,-170.53525655,0.00014999,2]
[391344184,1760553032107,-500.0,0.00014999,2]
[391344185,1760553032117,-314.61283124,0.00014999,2]
[391344186,1760553032127,-445.45739098,0.00014999,2]
[391344187,1760553032136,-500.0,0.00014999,2]
[391344188,1760553032145,-303.8088091,0.00014999,2]